fUST/lending_fUST_20250223
["ID","MTS","AMOUNT","RATE_DAILY","PERIOD"]
[354123399,1740262240632,-500.0,0.00013863,2]
[354123401,1740262240641,-500.0,0.00013863,2]
[354123403,1740262240650,-500.0,0.00013863,2]
[354123405,1740262240660,-500.0,0.00013863,2]
[354123407,1740262240669,-500.0,0.00013863,2]
[354123408,1740262240678,-500.0,0.00013863,2]
[354123410,1740262240687,-520.49,0.00013863,2]
[354123412,1740262240696,-500.0,0.00013863,2]
[354123414,1740262240705,-308.07590232,0.00013863,2]
[354123416,1740262240714,-500.0,0.00013863,2]
[354123418,1740262240723,-179.73040439,0.0001392,2]
[354123420,1740262240733,-423.27,0.00013945,2]
[354123422,1740262240745,-500.0,0.00013945,2]
[354123424,1740262240754,-500.0,0.00013945,2]
[354123426,1740262240763,-500.0,0.00013945,2]
[354123428,1740262240772,-500.0,0.00013945,2]
[354123430,1740262240782,-500.0,0.00013945,2]
[354123432,1740262240791,-500.0,0.00013945,2]
[354123434,1740262240801,-500.0,0.00013945,2]
[354123436,1740262240810,-500.0,0.00013945,2]
[354123438,1740262240821,-500.0,0.00013945,2]
[354123440,1740262240831,-500.0,0.00013945,2]
[354123442,1740262240840,-500.0,0.00013945,2]
[354123444,1740262240850,-500.0,0.00013945,2]
[354123446,1740262240859,-500.0,0.00013945,2]
[354123448,1740262240868,-500.0,0.00013945,2]
[354123450,1740262240878,-500.0,0.00013945,2]
[354123452,1740262240887,-599.7,0.00013945,2]
[354123453,1740262240896,-500.0,0.00013945,2]
[354123455,1740262240906,-503.80431141,0.00013945,2]
[354123456,1740262240915,-500.0,0.00013945,2]
[354123457,1740262240924,-500.0,0.00013945,2]
[354123458,1740262240934,-500.0,0.00013945,2]
[354123459,1740262240943,-500.0,0.00013945,2]
[354123460,1740262240952,-500.0,0.00013945,2]
[354123461,1740262240962,-500.0,0.00013945,2]
[354123462,1740262240971,-573.43,0.00013945,2]
[354123463,1740262240982,-485.66519006,0.00013945,2]
[354123464,1740262240991,-500.0,0.00013945,2]
[354123465,1740262241001,-777.05,0.00013945,2]
[354123466,1740262241011,-500.0,0.00013945,2]
[354123467,1740262241021,-1723.27,0.00013945,2]
[354123468,1740262241031,-394.74,0.00013945,2]
[354123469,1740262241040,-500.0,0.00013945,2]
[354123470,1740262241050,-890.75,0.00013945,2]
[354123471,1740262241059,-500.0,0.00013945,2]
[354123472,1740262241069,-500.0,0.00013945,2]
[354123473,1740262241078,-500.0,0.00013945,2]
[354123474,1740262241087,-500.0,0.00013945,2]
[354123475,1740262241096,-500.0,0.00013945,2]
[354123476,1740262241105,-500.0,0.00013945,2]
[354123477,1740262241115,-528.54,0.00013945,2]
[354123478,1740262241125,-500.0,0.00013945,2]
[354123479,1740262241134,-500.0,0.00013945,2]
[354123480,1740262241143,-211.8,0.00013945,2]
[354123481,1740262241152,-500.0,0.00013945,2]
[354123482,1740262241161,-500.0,0.00013945,2]
[354123483,1740262241171,-2996.89,0.00013945,2]
[354123484,1740262241180,-459.72,0.00013945,2]
[354123485,1740262241190,-820.08,0.00013945,2]
[354123486,1740262241199,-500.0,0.00013945,2]
[354123487,1740262241208,-500.0,0.00013945,2]
[354123488,1740262241217,-500.0,0.00013945,2]
[354123489,1740262241227,-300.78,0.00013945,2]
[354123490,1740262241236,-250.2,0.00013945,2]
[354123491,1740262241246,-500.0,0.00013945,2]
[354123492,1740262241256,-500.0,0.00013945,2]
[354123493,1740262241265,-500.0,0.00013945,2]
[354123494,1740262241274,-500.0,0.00013945,2]
[354123495,1740262241284,-946.39,0.00013945,2]
[354123496,1740262241293,-3020.5,0.00013945,2]
[354123497,1740262241302,-597.78,0.00013945,2]
[354123498,1740262241311,-12742.49,0.00013945,2]
[354123499,1740262241321,-500.0,0.00013945,2]
[354123500,1740262241330,-688.01,0.00013945,2]
[354123501,1740262241339,-1175.06,0.00013945,2]
[354123502,1740262241349,-500.0,0.00013945,2]
[354123503,1740262241358,-755.06,0.00013945,2]
[354123504,1740262241367,-912.03,0.00013945,2]
[354123505,1740262241376,-500.0,0.00013945,2]
[354123506,1740262241385,-500.0,0.00013945,2]
[354123507,1740262241395,-500.0,0.00013945,2]
[354123508,1740262241403,-500.0,0.00013945,2]
[354123509,1740262241413,-500.0,0.00013945,2]
[354123510,1740262241422,-500.0,0.00014027,2]
[354123511,1740262241431,-500.0,0.00014027,2]
[354123512,1740262241440,-500.0,0.00014027,2]
[354123513,1740262241450,-500.0,0.00014027,2]
[354123514,1740262241459,-500.0,0.00014027,2]
[354123515,1740262241467,-500.0,0.00014027,2]
[354123516,1740262241477,-500.0,0.00014027,2]
[354123517,1740262241486,-500.0,0.00014027,2]
[354123518,1740262241495,-500.0,0.00014027,2]
[354123519,1740262241504,-306.04,0.00014027,2]
[354123520,1740262241514,-500.0,0.00014027,2]
[354123521,1740262241523,-500.0,0.00014027,2]
[354123522,1740262241532,-500.0,0.00014027,2]
[354123523,1740262241542,-286.24,0.00014027,2]
[354123524,1740262241551,-374.14,0.00014027,2]
[354123525,1740262241560,-190.33,0.00014027,2]
[354123526,1740262241570,-283.10591411,0.00014027,2]
[354123527,1740262241579,-503.20914958,0.00014027,2]
[354123528,1740262241588,-500.0,0.00014027,2]
[354123529,1740262241597,-500.0,0.00014027,2]
[354123530,1740262241606,-455.71,0.00014027,2]
[354123531,1740262241615,-573.43,0.00014027,2]
[354123532,1740262241624,-500.0,0.00014027,2]
[354123533,1740262241634,-777.05,0.00014027,2]
[354123534,1740262241643,-500.0,0.00014027,2]
[354123535,1740262241652,-1723.27,0.00014027,2]
[354123536,1740262241661,-500.0,0.00014027,2]
[354123537,1740262241670,-890.75,0.00014027,2]
[354123538,1740262241679,-500.0,0.00014027,2]
[354123539,1740262241687,-500.0,0.00014027,2]
[354123540,1740262241697,-500.0,0.00014027,2]
[354123541,1740262241706,-417.37,0.00014027,2]
[354123542,1740262241715,-500.0,0.00014027,2]
[354123543,1740262241724,-500.0,0.00014027,2]
[354123544,1740262241733,-216.97,0.00014027,2]
[354123545,1740262241744,-500.0,0.00014027,2]
[354123546,1740262241753,-2996.89,0.00014027,2]
[354123547,1740262241763,-820.08,0.00014027,2]
[354123548,1740262241772,-500.0,0.00014027,2]
[354123549,1740262241782,-500.0,0.00014027,2]
[354123550,1740262241791,-500.0,0.00014027,2]
[354123551,1740262241800,-466.44,0.00014027,2]
[354123552,1740262241810,-500.0,0.00014027,2]
[354123553,1740262241820,-500.0,0.00014027,2]
[354123554,1740262241830,-500.0,0.00014027,2]
[354123555,1740262241839,-946.39,0.00014027,2]
[354123556,1740262241848,-3020.5,0.00014027,2]
[354123557,1740262241857,-12742.49,0.00014027,2]
[354123558,1740262241866,-500.0,0.00014027,2]
[354123559,1740262241876,-688.01,0.00014027,2]
[354123560,1740262241884,-1175.06,0.00014027,2]
[354123561,1740262241894,-500.0,0.00014027,2]
[354123562,1740262241904,-755.06,0.00014027,2]
[354123563,1740262241913,-912.03,0.00014027,2]
[354123564,1740262241922,-500.0,0.00014027,2]
[354123565,1740262241931,-500.0,0.00014027,2]
[354123566,1740262241940,-500.0,0.00014027,2]
[354123567,1740262241949,-500.0,0.00014027,2]
[354123568,1740262241959,-500.0,0.00014027,2]
[354123569,1740262241968,-420.0,0.00014079,2]
[354123570,1740262241977,-488.84,0.00014109,2]
[354123571,1740262241986,-500.0,0.00014109,2]
[354123572,1740262241995,-500.0,0.00014109,2]
[354123573,1740262242004,-262.67,0.00014109,2]
[354123574,1740262242013,-500.0,0.00014109,2]
[354123575,1740262242022,-414.32,0.00014109,2]
[354123576,1740262242031,-617.72,0.00014109,2]
[354123577,1740262242040,-230.33,0.00014109,2]
[354123578,1740262242049,-267.83,0.00014109,2]
[354123579,1740262242058,-500.0,0.00014109,2]
[354123580,1740262242066,-500.0,0.00014109,2]
[354123581,1740262242075,-292.76,0.00014109,2]
[354123582,1740262242084,-500.0,0.00014109,2]
[354123583,1740262242094,-573.43,0.00014109,2]
[354123584,1740262242103,-437.93,0.00014109,2]
[354123585,1740262242113,-777.05,0.00014109,2]
[354123586,1740262242122,-286.8393178,0.00014109,2]
[354123587,1740262242133,-1723.27,0.00014109,2]
[354123588,1740262242142,-638.79,0.00014109,2]
[354123589,1740262242151,-890.75,0.00014109,2]
[354123590,1740262242160,-500.0,0.00014109,2]
[354123591,1740262242169,-500.0,0.00014109,2]
[354123592,1740262242179,-500.0,0.00014109,2]
[354123593,1740262242188,-500.0,0.00014109,2]
[354123594,1740262242197,-500.0,0.00014109,2]
[354123595,1740262242206,-500.0,0.00014109,2]
[354123596,1740262242215,-2996.89,0.00014109,2]
[354123597,1740262242224,-820.08,0.00014109,2]
[354123598,1740262242234,-500.0,0.00014109,2]
[354123599,1740262242243,-500.0,0.00014109,2]
[354123600,1740262242252,-500.0,0.00014109,2]
[354123602,1740262242333,-500.0,0.00014109,2]
[354123604,1740262242342,-500.0,0.00014109,2]
[354123606,1740262242352,-500.0,0.00014109,2]
[354123607,1740262242362,-946.39,0.00014109,2]
[354123608,1740262242371,-3020.5,0.00014109,2]
[354123609,1740262242380,-12742.49,0.00014109,2]
[354123610,1740262242389,-500.0,0.00014109,2]
[354123611,1740262242398,-688.01,0.00014109,2]
[354123612,1740262242407,-1175.06,0.00014109,2]
[354123613,1740262242416,-500.0,0.00014109,2]
[354123614,1740262242427,-755.06,0.00014109,2]
[354123615,1740262242436,-912.03,0.00014109,2]
[354123616,1740262242445,-447.23,0.00014109,2]
[354123617,1740262242455,-500.0,0.00014109,2]
[354123618,1740262242465,-289.55,0.00014109,2]
[354123619,1740262242475,-356.27,0.00014109,2]
[354123620,1740262242485,-500.0,0.00014109,2]
[354123621,1740262242496,-500.0,0.00014191,2]
[354123622,1740262242505,-500.0,0.00014191,2]
[354123623,1740262242516,-500.0,0.00014191,2]
[354123624,1740262242526,-500.0,0.00014191,2]
[354123625,1740262242537,-343.59,0.00014191,2]
[354123626,1740262242547,-500.0,0.00014191,2]
[354123627,1740262242556,-573.43,0.00014191,2]
[354123628,1740262242567,-777.05,0.00014191,2]
[354123629,1740262242576,-1723.27,0.00014191,2]
[354123631,1740262242585,-890.75,0.00014191,2]
[354123633,1740262242594,-500.0,0.00014191,2]
[354123634,1740262242604,-500.0,0.00014191,2]
[354123635,1740262242613,-500.0,0.00014191,2]
[354123636,1740262242625,-500.0,0.00014191,2]
[354123637,1740262242636,-500.0,0.00014191,2]
[354123638,1740262242646,-500.0,0.00014191,2]
[354123639,1740262242655,-2996.89,0.00014191,2]
[354123640,1740262242664,-820.08,0.00014191,2]
[354123641,1740262242673,-408.0,0.00014191,2]
[354123642,1740262242683,-500.0,0.00014191,2]
[354123643,1740262242692,-500.0,0.00014191,2]
[354123644,1740262242701,-500.0,0.00014191,2]
[354123645,1740262242710,-500.0,0.00014191,2]
[354123646,1740262242719,-500.0,0.00014191,2]
[354123647,1740262242728,-946.39,0.00014191,2]
[354123648,1740262242740,-3020.5,0.00014191,2]
[354123649,1740262242751,-12742.49,0.00014191,2]
[354123651,1740262242761,-500.0,0.00014191,2]
[354123653,1740262242770,-688.01,0.00014191,2]
[354123655,1740262242780,-1175.06,0.00014191,2]
[354123657,1740262242790,-500.0,0.00014191,2]
[354123659,1740262242799,-755.06,0.00014191,2]
[354123661,1740262242808,-912.03,0.00014191,2]
[354123663,1740262242818,-500.0,0.00014191,2]
[354123665,1740262242828,-500.0,0.00014191,2]
[354123667,1740262242837,-1015.25106819,0.00014241,2]
[354123669,1740262242847,-155.10461995,0.00014272,2]
[354123671,1740262242856,-500.0,0.00014272,2]
[354123672,1740262242866,-287.09015389,0.00014272,2]
[354123674,1740262242875,-500.0,0.00014272,2]
[354123675,1740262242885,-500.0,0.00014272,2]
[354123676,1740262242894,-375.01,0.00014273,2]
[354123677,1740262242903,-500.0,0.00014273,2]
[354123678,1740262242914,-500.0,0.00014273,2]
[354123679,1740262242924,-500.0,0.00014273,2]
[354123680,1740262242937,-500.0,0.00014273,2]
[354123681,1740262242947,-573.43,0.00014273,2]
[354123682,1740262242957,-777.05,0.00014273,2]
[354123683,1740262242966,-1723.27,0.00014273,2]
[354123684,1740262242975,-890.75,0.00014273,2]
[354123685,1740262242984,-500.0,0.00014273,2]
[354123686,1740262242993,-500.0,0.00014273,2]
[354123687,1740262243002,-500.0,0.00014273,2]
[354123688,1740262243011,-500.0,0.00014273,2]
[354123689,1740262243020,-563.62,0.00014273,2]
[354123690,1740262243029,-500.0,0.00014273,2]
[354123691,1740262243038,-2996.89,0.00014273,2]
[354123692,1740262243047,-820.08,0.00014273,2]
[354123693,1740262243057,-500.0,0.00014273,2]
[354123694,1740262243066,-179.59,0.00014273,2]
[354123695,1740262243075,-500.0,0.00014273,2]
[354123696,1740262243083,-500.0,0.00014273,2]
[354123697,1740262243093,-535.03,0.00014273,2]
[354123698,1740262243103,-946.39,0.00014273,2]
[354123699,1740262243113,-3020.5,0.00014273,2]
[354123700,1740262243123,-12742.49,0.00014273,2]
[354123701,1740262243133,-500.0,0.00014273,2]
[354123702,1740262243142,-688.01,0.00014273,2]
[354123703,1740262243152,-1175.06,0.00014273,2]
[354123704,1740262243161,-500.0,0.00014273,2]
[354123705,1740262243170,-755.06,0.00014273,2]
[354123706,1740262243180,-912.03,0.00014273,2]
[354123707,1740262243189,-500.0,0.00014273,2]
[354123708,1740262243198,-500.0,0.00014273,2]
[354123709,1740262243208,-1000.0,0.00014321,2]
[354123710,1740262243217,-500.0,0.00014356,2]
[354123711,1740262243226,-621.92,0.00014356,2]
[354123712,1740262243236,-500.0,0.00014356,2]
[354123713,1740262243245,-500.0,0.00014356,2]
[354123714,1740262243255,-573.43,0.00014356,2]
[354123715,1740262243264,-777.05,0.00014356,2]
[354123716,1740262243273,-1723.27,0.00014356,2]
[354123717,1740262243282,-890.75,0.00014356,2]
[354123718,1740262243292,-500.0,0.00014356,2]
[354123719,1740262243302,-500.0,0.00014356,2]
[354123720,1740262243311,-500.0,0.00014356,2]
[354123721,1740262243320,-446.5,0.00014356,2]
[354123722,1740262243330,-341.56,0.00014356,2]
[354123723,1740262243339,-2996.89,0.00014356,2]
[354123724,1740262243348,-820.08,0.00014356,2]
[354123725,1740262243357,-500.0,0.00014356,2]
[354123726,1740262243367,-500.0,0.00014356,2]
[354123727,1740262243376,-500.0,0.00014356,2]
[354123728,1740262243385,-946.39,0.00014356,2]
[354123729,1740262243395,-3020.5,0.00014356,2]
[354123730,1740262243404,-12742.49,0.00014356,2]
[354123731,1740262243414,-192.32,0.00014356,2]
[354123732,1740262243422,-688.01,0.00014356,2]
[354123733,1740262243432,-1175.06,0.00014356,2]
[354123734,1740262243441,-495.14,0.00014356,2]
[354123735,1740262243451,-755.06,0.00014356,2]
[354123736,1740262243460,-912.03,0.00014356,2]
[354123737,1740262243470,-500.0,0.00014356,2]
[354123738,1740262243479,-500.0,0.00014356,2]
[354123739,1740262243489,-500.0,0.00014438,2]
[354123740,1740262243498,-206.34,0.00014438,2]
[354123741,1740262243508,-337.74,0.00014438,2]
[354123742,1740262243517,-573.43,0.00014438,2]
[354123743,1740262243527,-777.05,0.00014438,2]
[354123744,1740262243536,-1723.27,0.00014438,2]
[354123745,1740262243546,-890.75,0.00014438,2]
[354123746,1740262243556,-500.0,0.00014438,2]
[354123747,1740262243566,-500.0,0.00014438,2]
[354123748,1740262243575,-500.0,0.00014438,2]
[354123749,1740262243585,-2996.89,0.00014438,2]
[354123750,1740262243594,-820.08,0.00014438,2]
[354123751,1740262243604,-500.0,0.00014438,2]
[354123752,1740262243615,-500.0,0.00014438,2]
[354123753,1740262243624,-500.0,0.00014438,2]
[354123754,1740262243634,-946.39,0.00014438,2]
[354123755,1740262243643,-3020.5,0.00014438,2]
[354123756,1740262243652,-12742.49,0.00014438,2]
[354123757,1740262243662,-688.01,0.00014438,2]
[354123758,1740262243671,-1175.06,0.00014438,2]
[354123759,1740262243680,-755.06,0.00014438,2]
[354123760,1740262243690,-912.03,0.00014438,2]
[354123761,1740262243699,-500.0,0.00014438,2]
[354123762,1740262243709,-500.0,0.00014438,2]
[354123763,1740262243718,-569.08,0.0001452,2]
[354123764,1740262243728,-573.43,0.0001452,2]
[354123765,1740262243739,-777.05,0.0001452,2]
[354123766,1740262243749,-1723.27,0.0001452,2]
[354123767,1740262243758,-890.75,0.0001452,2]
[354123768,1740262243767,-500.0,0.0001452,2]
[354123769,1740262243776,-578.68,0.0001452,2]
[354123770,1740262243787,-242.83,0.0001452,2]
[354123771,1740262243796,-2996.89,0.0001452,2]
[354123772,1740262243805,-820.08,0.0001452,2]
[354123773,1740262243815,-500.0,0.0001452,2]
[354123774,1740262243824,-500.0,0.0001452,2]
[354123775,1740262243834,-500.0,0.0001452,2]
[354123776,1740262243843,-946.39,0.0001452,2]
[354123777,1740262243853,-3020.5,0.0001452,2]
[354123778,1740262243863,-12742.49,0.0001452,2]
[354123779,1740262243872,-688.01,0.0001452,2]
[354123780,1740262243881,-1175.06,0.0001452,2]
[354123781,1740262243890,-755.06,0.0001452,2]
[354123782,1740262243899,-912.03,0.0001452,2]
[354123783,1740262243908,-500.0,0.0001452,2]
[354123784,1740262243917,-500.0,0.0001452,2]
[354123785,1740262243926,-12924.89674434,0.00014536,2]
[354123786,1740262243935,-916.39250841,0.00014553,2]
[354123787,1740262243944,-573.43,0.00014602,2]
[354123788,1740262243954,-777.05,0.00014602,2]
[354123789,1740262243964,-1723.27,0.00014602,2]
[354123790,1740262243973,-890.75,0.00014602,2]
[354123791,1740262243983,-500.0,0.00014602,2]
[354123792,1740262243992,-2996.89,0.00014602,2]
[354123793,1740262244002,-820.08,0.00014602,2]
[354123794,1740262244011,-500.0,0.00014602,2]
[354123795,1740262244020,-500.0,0.00014602,2]
[354123796,1740262244029,-500.0,0.00014602,2]
[354123797,1740262244039,-151.0,0.00014602,2]
[354123798,1740262244048,-946.39,0.00014602,2]
[354123799,1740262244057,-3020.5,0.00014602,2]
[354123800,1740262244067,-12742.49,0.00014602,2]
[354123801,1740262244076,-688.01,0.00014602,2]
[354123802,1740262244085,-1175.06,0.00014602,2]
[354123803,1740262244094,-151.0,0.00014602,2]
[354123804,1740262244103,-755.06,0.00014602,2]
[354123805,1740262244112,-912.03,0.00014602,2]
[354123806,1740262244193,-500.0,0.00014602,2]
[354123807,1740262244202,-500.0,0.00014602,2]
[354123808,1740262244212,-573.43,0.00014684,2]
[354123809,1740262244222,-777.05,0.00014684,2]
[354123810,1740262244232,-1723.27,0.00014684,2]
[354123811,1740262244241,-890.75,0.00014684,2]
[354123812,1740262244251,-500.0,0.00014684,2]
[354123813,1740262244260,-151.0,0.00014684,2]
[354123814,1740262244269,-2996.89,0.00014684,2]
[354123815,1740262244279,-820.08,0.00014684,2]
[354123816,1740262244288,-381.55,0.00014684,2]
[354123817,1740262244297,-289.2,0.00014684,2]
[354123818,1740262244306,-289.2,0.00014684,2]
[354123819,1740262244315,-151.0,0.00014684,2]
[354123820,1740262244325,-460.44,0.00014684,2]
[354123821,1740262244334,-500.0,0.00014684,2]
[354123822,1740262244345,-946.39,0.00014684,2]
[354123823,1740262244355,-3020.5,0.00014684,2]
[354123824,1740262244364,-12742.49,0.00014684,2]
[354123825,1740262244374,-688.01,0.00014684,2]
[354123826,1740262244383,-1175.06,0.00014684,2]
[354123827,1740262244394,-755.06,0.00014684,2]
[354123828,1740262244404,-912.03,0.00014684,2]
[354123829,1740262244414,-500.0,0.00014684,2]
[354123830,1740262244423,-500.0,0.00014684,2]
[354123831,1740262244432,-151.0,0.000147,2]
[354123832,1740262244443,-1200.0,0.00014712,2]
[354123833,1740262244452,-573.43,0.00014767,2]
[354123834,1740262244463,-777.05,0.00014767,2]
[354123835,1740262244473,-1723.27,0.00014767,2]
[354123836,1740262244484,-890.75,0.00014767,2]
[354123837,1740262244495,-500.0,0.00014767,2]
[354123838,1740262244505,-2996.89,0.00014767,2]
[354123839,1740262244514,-820.08,0.00014767,2]
[354123840,1740262244525,-574.98,0.00014767,2]
[354123841,1740262244535,-946.39,0.00014767,2]
[354123842,1740262244545,-3020.5,0.00014767,2]
[354123843,1740262244555,-128.71116783,0.00014767,2]
[354123844,1740262244791,-500.0,0.00013698,2]
[354123845,1740262244801,-12613.77883217,0.00014767,2]
[354123846,1740262244811,-688.01,0.00014767,2]
[354123847,1740262244821,-1175.06,0.00014767,2]
[354123848,1740262244831,-755.06,0.00014767,2]
[354123849,1740262244839,-912.03,0.00014767,2]
[354123850,1740262244849,-500.0,0.00014767,2]
[354123851,1740262244859,-500.0,0.00014767,2]
[354123852,1740262244868,-151.0,0.000148,2]
[354123853,1740262244878,-159.82466077,0.00014831,2]
[354123854,1740262244887,-159.82466077,0.00014831,2]
[354123855,1740262244897,-159.82466077,0.00014831,2]
[354123856,1740262244906,-159.82466077,0.00014831,2]
[354123857,1740262244916,-159.82466077,0.00014831,2]
[354123858,1740262244926,-159.82466077,0.00014831,2]
[354123859,1740262244936,-159.82466077,0.00014831,2]
[354123860,1740262244946,-159.82466077,0.00014831,2]
[354123861,1740262244955,-159.82466077,0.00014831,2]
[354123862,1740262244965,-159.82466077,0.00014831,2]
[354123863,1740262244974,-159.82466077,0.00014831,2]
[354123864,1740262244983,-159.82466077,0.00014831,2]
[354123865,1740262244993,-159.82466077,0.00014831,2]
[354123866,1740262245003,-159.82466077,0.00014831,2]
[354123867,1740262245012,-159.82,0.00014831,2]
[354123868,1740262245021,-1125.78062592,0.00014831,2]
[354123869,1740262245031,-1723.27,0.00014849,2]
[354123870,1740262245041,-890.75,0.00014849,2]
[354123871,1740262245050,-500.0,0.00014849,2]
[354123872,1740262245060,-2996.89,0.00014849,2]
[354123873,1740262245070,-820.08,0.00014849,2]
[354123874,1740262245080,-946.39,0.00014849,2]
[354123875,1740262245089,-3020.5,0.00014849,2]
[354123876,1740262245099,-12742.49,0.00014849,2]
[354123877,1740262245108,-688.01,0.00014849,2]
[354123878,1740262245118,-1175.06,0.00014849,2]
[354123879,1740262245127,-755.06,0.00014849,2]
[354123880,1740262245137,-912.03,0.00014849,2]
[354123881,1740262245146,-500.0,0.00014849,2]
[354123882,1740262245156,-500.0,0.00014849,2]
[354123883,1740262245165,-270.404,0.00014882,2]
[354123884,1740262245174,-1248.22230996,0.000149,2]
[354123885,1740262245184,-1723.27,0.00014931,2]
[354123886,1740262245194,-890.75,0.00014931,2]
[354123887,1740262245204,-500.0,0.00014931,2]
[354123888,1740262245214,-2996.89,0.00014931,2]
[354123889,1740262245223,-820.08,0.00014931,2]
[354123890,1740262245233,-946.39,0.00014931,2]
[354123891,1740262245243,-3020.5,0.00014931,2]
[354123892,1740262245253,-12742.49,0.00014931,2]
[354123893,1740262245263,-688.01,0.00014931,2]
[354123894,1740262245273,-1175.06,0.00014931,2]
[354123895,1740262245282,-755.06,0.00014931,2]
[354123896,1740262245291,-912.03,0.00014931,2]
[354123897,1740262245301,-500.0,0.00014931,2]
[354123898,1740262245310,-500.0,0.00014931,2]
[354123899,1740262245320,-151.0,0.00015013,2]
[354123900,1740262245329,-151.0,0.00015013,2]
[354123901,1740262245340,-1723.27,0.00015013,2]
[354123902,1740262245350,-890.75,0.00015013,2]
[354123903,1740262245361,-593.39,0.00015013,2]
[354123904,1740262245370,-2996.89,0.00015013,2]
[354123906,1740262245380,-820.08,0.00015013,2]
[354123908,1740262245390,-946.39,0.00015013,2]
[354123910,1740262245399,-3020.5,0.00015013,2]
[354123911,1740262245409,-12742.49,0.00015013,2]
[354123912,1740262245418,-688.01,0.00015013,2]
[354123913,1740262245428,-1175.06,0.00015013,2]
[354123914,1740262245437,-755.06,0.00015013,2]
[354123915,1740262245447,-912.03,0.00015013,2]
[354123916,1740262245457,-500.0,0.00015013,2]
[354123917,1740262245466,-500.0,0.00015013,2]
[354123918,1740262245475,-1723.27,0.00015095,2]
[354123919,1740262245485,-890.75,0.00015095,2]
[354123920,1740262245494,-2996.89,0.00015095,2]
[354123921,1740262245504,-820.08,0.00015095,2]
[354123922,1740262245513,-946.39,0.00015095,2]
[354123923,1740262245522,-3020.5,0.00015095,2]
[354123924,1740262245532,-12742.49,0.00015095,2]
[354123926,1740262245541,-688.01,0.00015095,2]
[354123928,1740262245553,-1175.06,0.00015095,2]
[354123930,1740262245563,-755.06,0.00015095,2]
[354123932,1740262245573,-912.03,0.00015095,2]
[354123934,1740262245583,-500.0,0.00015095,2]
[354123936,1740262245592,-500.0,0.00015095,2]
[354123938,1740262245603,-1723.27,0.00015178,2]
[354123939,1740262245615,-890.75,0.00015178,2]
[354123940,1740262245624,-151.0,0.00015178,2]
[354123941,1740262245634,-2996.89,0.00015178,2]
[354123942,1740262245643,-820.08,0.00015178,2]
[354123943,1740262245653,-289.2,0.00015178,2]
[354123945,1740262245662,-289.2,0.00015178,2]
[354123946,1740262245672,-151.0,0.00015178,2]
[354123947,1740262245681,-946.39,0.00015178,2]
[354123948,1740262245691,-3020.5,0.00015178,2]
[354123949,1740262245701,-12742.49,0.00015178,2]
[354123950,1740262245710,-688.01,0.00015178,2]
[354123952,1740262245720,-1175.06,0.00015178,2]
[354123954,1740262245729,-755.06,0.00015178,2]
[354123955,1740262245742,-912.03,0.00015178,2]